Cogmind - Beta 16.1 @@@ ROGUE MODE // 2026.04.05 @ 04:37:30 Player: KURIIRI Result: Destroyed by 1C-KQZ(R) with Subdweller Beam Cannon Performance ------------- Evolutions (0) 0 Regions Visited (2) 400 Robots Destroyed (44) 220 Value Destroyed (1139) 1139 Prototype IDs (4) 80 Alien Tech Used (0) 0 Bonus (0) 0 TOTAL SCORE: 1839 Bonus ------- None Cogmind --------- Core Integrity 0/250 Matter 300/300 Energy 221/265 System Corruption 6% Temperature Hot (269) Movement Rolling (90) Location -10/Subcaves Parts ------- > --- POWER (1) -------- Improved Ion Engine > --- PROPULSION (2) --- Armored Wheel Armored Wheel > --- UTILITY (2) ------ (None) > --- WEAPON (2) ------- Subdweller Laser > --- INVENTORY (5) ---- Improved Ion Engine High-capacity Storage Unit Subdweller Laser Subdweller Machine Gun Grenade Launcher Peak State ------------ > --- POWER ------------ Improved Ion Engine > --- PROPULSION ------- Improved Treads Improved Treads > --- UTILITY ---------- Large Storage Unit Makeshift Light Armor Plating > --- WEAPON ----------- Advanced Beam Cannon Improved Assault Rifle > --- INVENTORY -------- Improved Ion Engine Improved Ion Engine Light Treads Improved Treads Improved Treads Armored Wheel Armored Wheel High-capacity Storage Unit Light Armor Plating Light Armor Plating Advanced Beam Cannon Improved Assault Rifle Improved Assault Rifle Grenade Launcher Mini Grenade Launcher [Rating: 19] Favorites ----------- Power Improved Ion Engine Engine Improved Ion Engine Propulsion Improved Treads Treads Improved Treads Leg Aluminum Leg Wheel Armored Wheel Utility Large Storage Unit Device Tractor Beam Storage Large Storage Unit Protection Light Armor Plating Weapon Improved Assault Rifle Energy Gun Subdweller Laser Energy Cannon Advanced Beam Cannon Ballistic Gun Improved Assault Rifle Launcher Mini Grenade Launcher Build | -11 -10 -10 ------- Run | Yrd Mat Sub Slots Evolved . | . . . Power . | . . . Propulsion . | . . . Utility . | . . . Weapon . | . . . Parts Attached 27 | 3 14 10 Power 2 | . 1 1 Engine 2 | . 1 1 Core . | . . . Reactor . | . . . Propulsion 6 | 2 2 2 Treads 4 | 2 2 . Leg . | . . . Wheel 2 | . . 2 Hover . | . . . Flight . | . . . Utility 7 | 1 3 3 Device 1 | 1 . . Storage 2 | . 2 . Processor . | . . . Hackware . | . . . Protection 4 | . 1 3 Artifact . | . . . Weapon 12 | . 8 4 Energy Gun 2 | . . 2 Energy Cannon 3 | . 3 . Ballistic Gun 5 | . 4 1 Ballistic Cannon . | . . . Launcher 2 | . 1 1 Special Weapon . | . . . Impact Weapon . | . . . Slashing Weapon . | . . . Piercing Weapon . | . . . Special Melee Weapon . | . . . Unidentified Prototypes 2 | . 2 . Parts Lost 5 | . 1 4 Power . | . . . Propulsion 2 | . . 2 Utility 2 | . 1 1 Weapon 1 | . . 1 Highest Loss Streak 2 | . 1 2 To Critical Strikes . | . . . Average Backups 11 | 6 12 10 Power 1 | 1 2 1 Propulsion 2 | 4 3 2 Utility 2 | . 2 2 Weapon 4 | 1 4 3 Tool/Special . | . . . Unused Backups 19 | . 8 11 Power 4 | . 3 1 Propulsion 3 | . . 3 Utility 3 | . 1 2 Weapon 9 | . 4 5 Tool/Special . | . . . Average Slot Usage (%) 95 | . 98 92 Engine 14 | . 14 14 Treads 20 | . 28 14 Wheel 7 | . . 12 Storage 10 | . 14 7 Protection 13 | . 12 13 Energy Gun 5 | . 1 8 Energy Cannon 7 | . 8 7 Ballistic Gun 14 | . 17 11 Peak Build Rating 19 | 7 16 19 Average Rating 13 | 6 11 15 On Entrance 9 | 6 7 16 Avg Prop Armor Cover (%) . | . . . Naked Turns . | . . . Heaviest Build 39 | 12 37 39 Greatest Support 46 | 40 46 46 Greatest Overweight (x) 1 | . . 1 Average Overweight (x) . | . . . Largest Inventory Capacity 15 | 8 15 15 Average Capacity 12 | 8 14 10 Most Carried 15 | 6 15 15 Average Carried 11 | 5 12 10 Final Capacity 15 | 8 15 5 Final Carried 15 | 4 15 5 Class Distribution -------------------- 73% | Mutant 26% | Subdweller-Mutant Dominant Class ---------------- Mutant | -10/Materials Mutant | -10/Subcaves Resources | -11 -10 -10 ----------- Run | Yrd Mat Sub Matter Collected 981 | 233 334 414 Remotely 33 | 33 . . Salvage Created 1310 | 97 686 527 Parts 86 | 4 42 40 Haulers Intercepted 2 | . 2 . Recyclers Shooed . | . . . Parts Field Recycled . | . . . Retrieved Matter . | . . . Parts Self-Destructed 25 | . . 25 Prevented . | . . . Parts Restored . | . . . Kills | -11 -10 -10 ------- Run | Yrd Mat Sub Combat Hostiles Destroyed 37 | . 20 17 Guns 21 | . 10 11 Cannons 8 | . 6 2 AOE 7 | . 3 4 Classes Destroyed 10 | 2 5 3 Tunneler 1 | 1 . . Hauler 2 | . 2 . Recycler 1 | 1 . . Operator 1 | . 1 . Watcher 2 | . 2 . Swarmer 12 | . 9 3 Grunt 14 | . 11 3 Sentry 1 | . . 1 Artisan 1 | . . 1 Subdweller 10 | . . 10 Best Kill Streak 4 | 2 4 2 Combat Bots Only 3 | . 3 2 Max Kills in Single Turn 2 | 1 2 1 Gunslinging . | . . . Exploded 2 | . 2 1 Melee . | . . . Uniques/NPCs Destroyed . | . . . Combat | -11 -10 -10 -------- Run | Yrd Mat Sub Hostile Shots Fired 154 | . 69 85 Missed 42 | . 21 21 Hits 112 | . 48 64 Projectile 112 | . 48 64 Critical Strikes 2 | . . 2 Damage Taken 1703 | . 551 1152 Core 265 | . 109 156 Absorbed by Shields . | . . . Regen/Repaired (Parts) 88 | . 88 . Core Remaining (%) 100 | 100 . . Volleys Fired 136 | 3 56 77 Largest 2 | 2 2 2 Hottest 128 | 60 91 128 Shots Fired 242 | 6 108 128 Gun 158 | 6 63 89 Cannon 70 | . 43 27 Launcher 14 | . 2 12 Special . | . . . Kinetic 100 | 3 58 39 Thermal 120 | . 43 77 Explosive 14 | . 2 12 Electromagnetic 8 | 3 5 . Robot Hit Streak 17 | 3 13 17 Robot Miss Streak 6 | 1 4 6 Penetration Max . | . . . Secondary Targets 2 | . 1 1 Max Gunslinging Chain 1 | . 1 1 Shots Hit Robots 140 | 4 71 65 Core Hits 65 | 3 31 31 Critical Kills 2 | . 1 1 Critical Parts Destroyed 2 | . 2 . Critical Strikes 5 | . 3 2 Meltdown 1 | . 1 . Destroy 4 | . 2 2 Melee Attacks . | . . . Impact . | . . . Slashing . | . . . Piercing . | . . . Sneak Attacks . | . . . Combat Hostiles . | . . . Follow-up Attacks . | . . . Damage Inflicted 3381 | 91 1332 1958 Guns 1521 | 45 649 827 Cannons 809 | . 462 347 Explosions 1047 | 46 217 784 Melee . | . . . Ramming 4 | . 4 . Kinetic 964 | 6 617 341 Thermal 1401 | 46 522 833 Explosive 941 | . 157 784 Electromagnetic 71 | 39 32 . Impact . | . . . Slashing . | . . . Piercing . | . . . Highest Corruption 6 | . 6 6 Average Corruption 5 | . 3 6 Corruption Purged . | . . . Corruption Blocked . | . . . Effects 58 | . 12 46 Message Errors 13 | . 3 10 Matter Fused 12 | . 3 9 Heat Flow Errors 10 | . 1 9 Energy Discharges 5 | . 3 2 Data Loss (minor) 6 | . 2 4 Data Loss (major) 6 | . . 6 Misfires 4 | . . 4 Alerts 2 | . . 2 Overload Shots . | . . . Overflow Damage 38 | 16 22 . Projectiles . | . . . Explosions 38 | 16 22 . Melee . | . . . Knockbacks 1 | . 1 . Impact 1 | . 1 . Kinetic . | . . . Secondary . | . . . Self-Inflicted Damage 37 | . 37 . Shots 1 | . 1 . Rammed 1 | . 1 . Targets Rammed 1 | . 1 . Kicked . | . . . Crushed . | . . . Highest Temperature 324 | 20 324 281 Average Temperature 85 | 15 85 89 Received Heat Transfer 677 | . 174 503 Effects 1 | . . 1 Energy Bleed 1 | . . 1 Siege Activations . | . . . Martial Activations . | . . . Shielding Activations . | . . . Robots Disrupted . | . . . Combat Hostiles . | . . . Robots Corrupted . | . . . Combat Hostiles . | . . . Parts Fried . | . . . Impact Corruptions . | . . . Robots Melted 1 | . 1 . Combat Hostiles 1 | . 1 . Parts Melted 7 | . 6 1 Heat Transferred 2304 | 50 1025 1229 Parts Sabotaged . | . . . Parts Stolen . | . . . Parts Stripped . | . . . Power Chain Reactions 2 | 1 1 . Alert | -11 -10 -10 ------- Run | Yrd Mat Sub Maximum Alert Level 1 | . 1 . Low Security (%) 77 | 100 77 . Level 1 22 | . 22 . Level 2 . | . . . Level 3 . | . . . Level 4 . | . . . Level 5 . | . . . High Security . | . . . Max Security . | . . . Peak Influence 309 | 10 309 . Initial . | . . . Average 109 | 5 111 . Influence Increases 864 | 10 659 195 Destroy 0b10 Robot/C 540 | . 400 140 Destroy 0b10 Robot/NC 35 | 10 25 . Destroy Leader 98 | . 88 10 Successful Hack 34 | . 34 . Select Force Hacks 60 | . 60 . Disable Machine 30 | . 30 . Destroy Structure 22 | . 22 . Lose Combat Pursuer 45 | . . 45 Influence Decreases 824 | 10 358 456 Entered New Map 145 | . . 145 Time Decay 656 | 10 355 291 Lost Part 23 | . 3 20 Squads Dispatched 5 | . 5 . Investigation 4 | . 4 . Extermination . | . . . Reinforcement 1 | . 1 . Assault . | . . . Garrison . | . . . Intercept . | . . . Searches Triggered . | . . . Construction Impeded . | . . . Haulers Reinforced . | . . . Active Scanning Responses . | . . . Cargo Convoy Interrupts . | . . . Stealth | -11 -10 -10 --------- Run | Yrd Mat Sub Distress Signals . | . . . Communications Jammed . | . . . Distress Signals . | . . . Times Spotted 46 | . 25 21 Peak Tracking Total 4 | . 3 4 Tactical Retreats 2 | . . 2 Traps | -11 -10 -10 ------- Run | Yrd Mat Sub Traps Triggered 4 | . 4 . Indirectly . | . . . Trap Hack Attempts . | . . . Triggered . | . . . Disarmed . | . . . Reprogrammed . | . . . Reused . | . . . Traps Extracted . | . . . Installed . | . . . Triggered . | . . . Machines | -11 -10 -10 ---------- Run | Yrd Mat Sub Machines Disabled 3 | . 2 1 Max in Single Turn 1 | . 1 1 Machines Repaired . | . . . Machines Dismantled . | . . . Machines Sabotaged . | . . . Overloaded Fab Kills . | . . . Hacking | -11 -10 -10 --------- Run | Yrd Mat Sub Machines Accessed 9 | . 9 . Terminals 6 | . 6 . Fabricators . | . . . Repair Stations 1 | . 1 . Recycling Units 2 | . 2 . Scanalyzers . | . . . Garrison Access . | . . . Total Hacks 26 | . 26 . Successful 20 | . 20 . Failed 5 | . 5 . Catastrophic . | . . . Database Lockouts 1 | . 1 . Manual 21 | . 21 . Terminals 22 | . 22 . Fabricators . | . . . Repair Stations 2 | . 2 . Recycling Units 2 | . 2 . Scanalyzers . | . . . Garrison Access . | . . . Terminal Hacks 6 | . 6 . Robot Analysis 2 | . 2 . Prototype ID Bank 2 | . 2 . Zone Layout 2 | . 2 . Fabricator Hacks . | . . . Repair Station Hacks 2 | . 2 . Scan Component 1 | . 1 . Repair 1 | . 1 . Recycling Unit Hacks . | . . . Scanalyzer . | . . . Garrison Access Hacks . | . . . Unauthorized Hacks 12 | . 12 . Terminals 10 | . 10 . Track 1 | . 1 . Botnet 3 | . 3 . Operators 1 | . 1 . Skim 5 | . 5 . Fabricators . | . . . Repair Stations . | . . . Recycling Units 2 | . 2 . Tunnel 2 | . 2 . Scanalyzers . | . . . Garrison Access . | . . . Data Cores Recovered . | . . . Used . | . . . Hacking Detections 5 | . 5 . Full Trace Events . | . . . Feedback Events . | . . . Feedback Blocked . | . . . Robot Schematics Acquired . | . . . Robots Built . | . . . Authchips . | . . . Time . | . . . Total Robot Build Rating . | . . . Part Schematics Acquired . | . . . Parts Built . | . . . Authchips . | . . . Time . | . . . Total Part Build Rating . | . . . Part Studies Acquired . | . . . Parts Repaired 1 | . 1 . Time 26 | . 26 . Parts Recycled . | . . . Recycled Matter . | . . . Retrieved Matter . | . . . Retrieved Components . | . . . Parts Scanalyzed . | . . . Part Schematics Acquired . | . . . Parts Damaged . | . . . Bothacking | -11 -10 -10 ------------ Run | Yrd Mat Sub Used RIF Installer . | . . . Robots Hacked . | . . . Non-combat . | . . . Combat . | . . . Robot Hacks Applied . | . . . Relay Couplers Released . | . . . Fabnet Peak Effective % . | . . . Robots Rewired . | . . . Allies Hacked . | . . . Hacks Repelled . | . . . Allies | -11 -10 -10 -------- Run | Yrd Mat Sub Total Allies . | . . . Largest Group . | . . . Highest-Rated Group . | . . . Highest-Rated Ally . | . . . Total Orders . | . . . Ally Attacks . | . . . Total Damage . | . . . Kills . | . . . Allies Corrupted . | . . . Allies Melted . | . . . Intel | -11 -10 -10 ------- Run | Yrd Mat Sub Active Infowar (turns) . | . . . Robot Analysis Total 2 | . 2 . Derelict Logs Recovered 2 | . . 2 Drone Launches . | . . . Drone Recoveries . | . . . Exploration | -11 -10 -10 ------------- Run | Yrd Mat Sub Turns Passed 2971 | 27 1287 1657 Spaces Moved 1638 | 12 586 1040 Core . | . . . Treads 1078 | 1 586 491 Legs 11 | 11 . . Wheels 549 | . . 549 Hover . | . . . Flight . | . . . Fastest Speed 90 | 120 160 90 Average Speed 141 | 123 160 130 Slowest Speed 160 | 160 160 160 Overloaded Moves . | . . . Propulsion Burnouts . | . . . Robots Hopped . | . . . Potential Cave-ins 2 | . . 2 Cave-ins Triggered . | . . . Exploration Rate (%) 53 | 2 91 66 Regions Visited 2 Branch Regions 1 Pre-discovered Areas 5 | . 3 2 Known Exits Taken 1 | . 1 . Unknown Exits Taken 1 | 1 . . Scrap Searched 4 | . . 4 Spaces Dug 7 | . . 7 Terrain Destroyed 100 | 4 20 76 Melee . | . . . Projectile 16 | . . 16 AOE 84 | 4 20 60 Terrain Rammed . | . . . Walls Destroyed . | . . . Machines Disabled . | . . . Actions | -11 -10 -10 --------- Run | Yrd Mat Sub Total 2062 | 19 832 1211 Wait 199 | . 134 65 Move 1636 | 11 585 1040 Hop . | . . . Pick Up 24 | . 21 3 Fast Attach 10 | 1 6 3 Attach 4 | 2 . 2 Detach . | . . . Swap 19 | . 11 8 Drop 28 | 2 18 8 Fire 136 | 3 56 77 Melee . | . . . Ram . | . . . Kick . | . . . Crush 1 | . 1 . Escape Stasis . | . . . Rewire . | . . . Trap . | . . . Miscellaneous 5 | . . 5 Route ------- -11/Scrapyard -10/Materials (discovered 5 exits: *Mat x3 / *Min / *Sub) -10/Subcaves (discovered 3 exits: [*Mat x2] / [*Rec]) History --------- Turn | Location | Event 4 | -11/Scrapyard | Discovered new exit (range 2) 28 | -11/Scrapyard | Entered Materials 256 | -10/Materials | Central database locked down 310 | -10/Materials | Build established: Mutant 381 | -10/Materials | Discovered new exit (range 15) 710 | -10/Materials | Discovered new exit (range 8) 985 | -10/Materials | Repaired Lgt. Armor Plating 1013 | -10/Materials | Identified exit to Subcaves 1101 | -10/Materials | Learned 2 Mines zone layouts 1153 | -10/Materials | Discovered new exit (range 6) 1155 | -10/Materials | Identified exit to Materials 1155 | -10/Materials | Identified exit to Mines 1171 | -10/Materials | Learned location of 2 exits from Mines 1196 | -10/Materials | Learned location of 2 exits from Materials 1229 | -10/Materials | Learned Storage stockpile data 1315 | -10/Materials | Entered Subcaves 1438 | -10/Subcaves | Learned location of Zion (-6) 1438 | -10/Subcaves | Met a Zionite searching for "candidates" 1856 | -10/Subcaves | Core integrity fell below 50% 1867 | -10/Subcaves | Ambushed by Subdwellers from Twisted Machinery 1938 | -10/Subcaves | Disturbed a concealed Subdweller 2033 | -10/Subcaves | Visited 4L-MR0's lab 2332 | -10/Subcaves | Discovered new exit (range 9) 2392 | -10/Subcaves | Learned location of Storage (-7) 2474 | -10/Subcaves | Shifting Twisted Machinery released Riot Gun 2497 | -10/Subcaves | Build established: Subdweller-Mutant 2546 | -10/Subcaves | Shifting Twisted Machinery released Slug Cannon 2727 | -10/Subcaves | Core integrity fell below 20% 2756 | -10/Subcaves | Discovered new exit (range 8) 2870 | -10/Subcaves | Disturbed a concealed Subdweller 2945 | -10/Subcaves | Discovered new exit (range 5) 2972 | -10/Subcaves | Destroyed by 1C-KQZ(R) with Subdweller Beam Cannon Last Messages --------------- 02885_ Acquired 36 matter. 02885_ Searching scrap... 02885_ Found Sub. Machine Gun. 02885_ Found Sub. Laser. 02885_ Found 65 Matter. 02888_ Dropped Adv. Beam Cannon. 02889_ Acquired Sub. Machine Gun. 02891_ Dropped Lgt. Armor Plating. 02891_ Acquired Sub. Laser. 02924_ ,XC7LR%=YVXDZ/35L0WWR# 0=WDJFJLUK T 02931_ PL-QA0(R) destroyed. 02939_ System corrupted: Heat flow error (+215). 02939_ Acquired 2 matter. 02945_ EXIT=FOUND 02965_ NORJYO9/W:12UTZMY5XND5 02966_ EW-4V9(R) suffers critical hit (Destroy). 02967_ Critical hit (Meltdown: +260). 02969_ Scrap Shield destroyed. 02971_ Sub. Machine Gun destroyed. 02972_ Overheating: Energy bleed (-26). Map ----- +----------------------------------------------------+ | # #???????????????????????????? | | #??????????????????????????? | | # ### #### # # # # ##??????????????????????????? | | ####?###??### #####???????????????????????????? | | ????????????######???????????????????????????????? | | ?????????????????????????????????????????????????? | | ?????????????????????????????????????????????????? | | ?????????????????????????????????????????????????? | | ?????????????????????????????????????????????????? | | ?????????????????????????????????????????????????? | | ?????????????????????????????????????????????????? | | ?????????????????????????????????????????????????? | | ?????????????????????????????????????????????????? | | ?????????????????????????????????????????????????? | | ??????????????????????????###????????????????????? | | ?????????????????????????## ##???????????????????? | | ????????????????????????## #####? ?????????????? | | ?????????????????????#### % "#" ????????????? | | ???????????????????### "" ?????????????? | | ??????????????????## ? < "???????????????? | | ?????????? ??????## ? " ?????????????????? | | ?????????? ????# # ?# ""???????????????????? | | ????????? ##### ##?# #????????????????????? | | ?????????? ### #????????????????????? | | ?????????? ## #????????????????????? | | ?????????????# @R #????????????????????? | | ??????????????# = R##????????????????????? | | ??????????????# !%###?????????????????????? | | ??????????????# ##???????????????????????? | | ??????????????## #????????????????????????? | | ???????????????### #????????????????????????? | | ?????????????????# ##????????????????????????? | | ??????????????##?# ##?????????????????????????? | | ??????????????# ## #??????????????????????????? | | ??????????????# #??????????????????????????? | | ?????????????## #??????????????????????????? | | ?????????????# ##??????????????????????????? | | ?????????????## ######??????????????????????? | | ??????????????### # #??????????????????????? | | ????????????????# #??????????????????????? | | ????????????????# # ##??????????????????????? | | ????????????????# ### #??????????????????????? | | ????????????????## ?# #??????????????????????? | | ????????????????# ## ##??????????????????????? | | ????????????????## # # #???????????????????????? | | ?????????????????# ##??????????????????????? | | ????????????????## ##?????????????????????? | | ????????????????# ##????????????????????? | | ????????????????# #????????????????????? | | ????????????????## ## #???????????????????? | +----------------------------------------------------+ Best States ------------- Heat Dissipation 25 Energy Generation 12 Energy Capacity 265 Matter Stores 300 Matter Capacity 300 Sight Range 16 Terrain Scan Density 10 Armor Coverage 800 Evasion (%) 50 Recoil Reduction 2 Item Schematics ----------------- None Robot Schematics ------------------ None Fabricated ------------ Nothing Repaired ---------- Lgt. Armor Plating | 2% | -10/Materials Studied --------- None Alien Tech Used ----------------- None Achievements -------------- None Challenges ------------ None Game ------ Seed XenonKineticFlamer Manual? 0 Play Time 00:18:24 Cumulative 388.3 hours Start 2026.04.05 @ 04:21:10 End 2026.04.05 @ 04:37:30 Sessions 1 Manual Loads 0 Difficulty Rogue Special Mode None Game No. 327 Rogue 291 Adventurer 36 Explorer 0 Win Type - Total 5 Types 2/0/0/1/0/0/0/2/0/0 Lore% 73 Gallery% 66 Achievement% 55 Wizard Run 0 Options --------- Layout 1 ASCII 0 Keyboard 0 Movement Numpad Keybinds 0 Fullscreen 1 Font 48/Smallcaps Map View 50x35 Zoom Use 0% Tactical HUD 1 Map Filters NONE Filters NONE Steam 1 RUN: d23691e4-5380-4d90-8aa2-2393f5279aa5